[Event "13th Palmanova Festival A 2024"]
[Site "Palmanova"]
[Date "2024.12.29"]
[Round "4.1"]
[White "Zamengo, Fulvio"]
[Black "Martinovici, Ilia"]
[Result "0-1"]
[ECO "B90"]
[WhiteElo "2348"]
[BlackElo "2473"]
[Annotator "TA"]
[PlyCount "44"]
[EventDate "2024.12.27"]
[EventCountry "ITA"]
[SourceTitle "playchess.com"]
[Source "ChessBase"]
[SourceQuality "1"]
[TimeControl "6000+30"]

{[%evp 11,44,3,8,3,8,4,2,15,16,0,21,18,24,36,30,16,17,-25,-23,-36,0,-21,-15,-33,56,-518,-500,-817,-796,-1079,-594,-634,-645,-1293,-610]} 1. e4 {[%emt 0:15:20]} c5 {[%emt 0:00:47]} 2. Nf3 {[%emt 0:00:13]} d6 {[%emt 0:00:10]} 3. d4 {[%emt 0:00:06]} cxd4 {[%emt 0:00:03]} 4. Nxd4 {[%emt 0:00:07]} Nf6 {[%emt 0:00:04]} 5. Nc3 {[%emt 0:00:07]} a6 {[%emt 0:00:37]} 6. h3 {[%emt 0:00:06]} e5 {[%emt 0:01:05]} 7. Nf3 {[%emt 0:00:06]} Be7 {[%emt 0:00:40]} 8. g4 {[%emt 0:00:08][%cal Bg2g4,Bg4g5][%mdl 32]} Be6 {[%emt 0:00:42]} 9. g5 {[%emt 0:07:01]} Nfd7 {[%emt 0:02:05]} 10. Be3 {[%emt 0:00:16]} Nc6 {[%emt 0:00:16]} 11. h4 {[%emt 0:00:10]} Rc8 {[%emt 0:02:14]} 12. Qd2 {[%emt 0:09:19]} Na5 {[%emt 0:06:02]} 13. b3 {[%emt 0:07:49]} Nc6 {[%emt 0:17:08]} 14. Bh3 {[%emt 0:17:17]} Nb4 {[%emt 0:03:31] With the idea ...Qc7.} 15. Ng1 {[%emt 0:02:34]} Nc5 {[%emt 0:17:07][%cal Oc5e4] White must now prevent ...Nxe4!.} 16. f3 {[%emt 0:08:01] [#]} h6 $1 {[%emt 0:07:04]} 17. a3 {[%emt 0:17:31]} (17. gxh6 Bxh4+) 17... Qa5 {[%emt 0:07:50]} (17... Nbd3+ $15 18. Kf1 (18. cxd3 Nxb3 19. Qb2 Nxa1 $11) 18... Nf4 19. Bxf4 exf4) 18. Rc1 $2 {[%emt 0:03:02][%mdl 8192] [#]} (18. Nge2 $1 $14 {keeps the upper hand.}) 18... Nbd3+ $1 $19 {[%emt 0:04:43]} ({Not} 18... Qxa3 19. Kf1 $15) 19. Kd1 {[%emt 0:07:39]} (19. cxd3 $142 Nxb3 20. gxh6 (20. Bxe6 $2 fxe6 21. Qa2 Nxc1 $19) 20... gxh6 (20... Nxd2 $2 21. hxg7 Rg8 22. Bxd2 $19) (20... Bxh4+ $2 21. Ke2 $19) 21. Qb2 (21. Bxe6 $2 fxe6 22. Qa2 Nxc1 $19) 21... Nxc1 22. Bxc1 Bxh4+ (22... Qxc3+ $2 23. Qxc3 Rxc3 24. Kd2 $19) (22... Rxc3 $2 23. Bd2 $19) 23. Ke2 Qxc3 (23... Rxc3 $2 24. Bd2 $19) 24. Qxc3 Rxc3 25. Bd2) 19... Nxb3 {[%emt 0:03:02]} 20. Bxe6 {[%emt 0:04:47]} fxe6 {[%emt 0:01:19]} 21. cxb3 {[%emt 0:01:58]} Nxc1 {[%emt 0:00:04]} 22. Nb1 {[%emt 0:00:06]} Nxb3 {[%emt 0:00:14]} (22... Qb5 $142 23. Ke1 Qxb3) 0-1

[Event "13th Palmanova Festival A 2024"]
[Site "Palmanova"]
[Date "2024.12.29"]
[Round "4.2"]
[White "Cina`, Vittorio"]
[Black "Lumachi, Gabriele"]
[Result "1/2-1/2"]
[ECO "D37"]
[WhiteElo "2325"]
[BlackElo "2438"]
[Annotator "TA"]
[PlyCount "95"]
[EventDate "2024.12.27"]
[EventCountry "ITA"]
[SourceTitle "playchess.com"]
[Source "ChessBase"]
[SourceQuality "1"]
[TimeControl "6000+30"]

{[%evp 9,95,25,19,26,33,25,41,4,6,0,13,0,8,0,-4,0,16,0,16,23,84,94,77,75,75,47,91,93,94,89,95,97,93,92,89,88,90,88,95,95,102,89,84,78,78,78,78,78,78,58,78,78,78,78,78,22,78,78,78,78,78,78,78,78,78,78,78,78,78,78,78,78,78,78,78,78,78,78,79,0,0,0,0,0,0,0,0,0]} 1. d4 {[%emt 0:06:22]} d5 {[%emt 0:00:58]} 2. c4 {[%emt 0:00:05]} e6 {[%emt 0:00:05]} 3. Nf3 {[%emt 0:00:05]} h6 {[%emt 0:00:21]} 4. Nc3 {[%emt 0:02:54]} Nf6 {[%emt 0:00:07]} 5. Bf4 {[%emt 0:04:05]} Bd6 {[%emt 0:00:28]} 6. Bxd6 {[%emt 0:01:15]} Qxd6 {[%emt 0:00:06]} 7. e3 {[%emt 0:02:03]} O-O {[%emt 0:00:10]} 8. Bd3 {[%emt 0:07:01]} dxc4 {[%emt 0:03:45]} 9. Bxc4 {[%emt 0:00:07]} c5 {[%emt 0:01:47]} 10. O-O {[%emt 0:02:34]} Nc6 {[%emt 0:22:57]} 11. Nb5 {[%emt 0:03:32]} Qe7 {[%emt 0:00:50]} 12. dxc5 {[%emt 0:01:37]} Rd8 {[%emt 0:05:16] Against Qd6} 13. Qe2 {[%emt 0:02:09]} Ne4 {[%emt 0:26:24]} 14. Nbd4 {[%emt 0:09:27]} e5 {[%emt 0:09:25]} (14... Bd7 $11) 15. Nxc6 $16 {[%emt 0:00:54]} bxc6 {[%emt 0:00:10]} 16. Qc2 {[%emt 0:09:05]} Nxc5 {[%emt 0:02:28][%cal Be4c5,Bc5b7,Bb7d6][%mdl 32]} 17. b4 {[%emt 0:01:59]} Nb7 {[%emt 0:06:36]} 18. Qe4 {[%emt 0:09:30][%csl LRc6,LRe5] Prevents Bg4.} Nd6 {[%emt 0:04:02]} 19. Qxe5 {[%emt 0:00:36] White is more active.} Qxe5 {[%emt 0:00:05]} 20. Nxe5 {[%emt 0:00:04]} Nxc4 {[%emt 0:00:06]} 21. Nxc4 {[%emt 0:00:06]} Ba6 {[%emt 0:00:05]} 22. Rfc1 {[%emt 0:00:17]} Bxc4 {[%emt 0:05:29]} 23. Rxc4 {[%emt 0:00:07][%mdl 4096] Endgame KRR-KRR. White is a pawn up.} a5 {[%emt 0:00:56]} 24. bxa5 {[%emt 0:05:23]} (24. Rxc6 axb4 25. g3 Rd2 $11 (25... b3 26. a4 $11)) 24... Rxa5 {[%emt 0:00:10]} 25. a4 {[%emt 0:02:55]} ({Much less strong is} 25. Rxc6 Rxa2 26. Rb1 Rd5 $14) 25... c5 {[%emt 0:01:50]} 26. g3 {[%emt 0:01:14]} Rb8 {[%emt 0:01:46]} 27. Rac1 {[%emt 0:02:10]} g6 {[%emt 0:02:59]} 28. Rxc5 {[%emt 0:02:48]} Rxa4 {[%emt 0:00:09]} 29. Rd5 {[%emt 0:00:35]} Rab4 {[%emt 0:01:47]} 30. Kg2 {[%emt 0:01:29]} h5 {[%emt 0:00:13]} 31. h4 {[%emt 0:01:32]} Kg7 {[%emt 0:00:42]} 32. Rd4 {[%emt 0:00:25]} (32. Rc7 $16) 32... Rb1 {[%emt 0:01:26]} (32... Rxd4 $11 33. exd4 Rb3) 33. Rcc4 {[%emt 0:01:17]} R8b7 {[%emt 0:01:09]} 34. Rf4 {[%emt 0:00:57]} R1b6 {[%emt 0:00:41]} 35. Kf3 {[%emt 0:03:49]} Rf6 {[%emt 0:02:04]} 36. Rxf6 {[%emt 0:00:11]} Kxf6 {[%emt 0:00:05] KR-KR. White is a pawn up.} 37. Kf4 {[%emt 0:00:40]} Rb2 {[%emt 0:03:45]} 38. Rc6+ {[%emt 0:00:28]} Ke7 {[%emt 0:01:15]} 39. f3 {[%emt 0:00:07]} Rf2 {[%emt 0:00:38]} 40. e4 {[%emt 0:00:39]} Rf1 {[%emt 0:02:05]} 41. Rc3 {[%emt 0:01:47] and Kg5 would now be decisive} Rg1 {[%emt 0:04:30]} 42. Rc2 {[%emt 0:04:17]} Ke6 {[%emt 0:00:00]} 43. Rh2 {[%emt 0:00:00]} Rf1 {[%emt 0:00:00]} 44. Ke3 {[%emt 0:00:00]} ({Better is} 44. Ra2 $16) 44... Rg1 $11 {[%emt 0:00:00]} 45. Kf2 {[%emt 0:00:00]} Ra1 {[%emt 0:00:00]} 46. Ke3 {[%emt 0:00:00]} Rg1 $1 {[%emt 0:00:00]} 47. Rh3 {[%emt 0:00:00]} Ke5 {[%emt 0:00:00]} 48. f4+ {[%emt 0:25:53]} 1/2-1/2

[Event "13th Palmanova Festival A 2024"]
[Site "Palmanova"]
[Date "2024.12.29"]
[Round "4.3"]
[White "Di Benedetto, Edoardo"]
[Black "Savanovic, Aleksandar"]
[Result "1/2-1/2"]
[ECO "E06"]
[WhiteElo "2411"]
[BlackElo "2354"]
[Annotator "TA"]
[PlyCount "30"]
[EventDate "2024.12.27"]
[EventCountry "ITA"]
[SourceTitle "playchess.com"]
[Source "ChessBase"]
[SourceQuality "1"]
[TimeControl "6000+30"]

{[%evp 13,30,7,22,10,15,5,9,25,21,4,43,28,36,0,0,0,0,0,0]} 1. d4 {[%emt 0:15:15]} Nf6 {[%emt 0:00:13]} 2. c4 {[%emt 0:00:58]} e6 {[%emt 0:00:08]} 3. Nf3 {[%emt 0:00:04]} d5 {[%emt 0:00:42]} 4. g3 {[%emt 0:00:12]} Be7 {[%emt 0:00:09]} 5. Bg2 {[%emt 0:00:06]} O-O {[%emt 0:00:06]} 6. Nc3 {[%emt 0:01:06]} dxc4 {[%emt 0:01:44]} 7. Ne5 {[%emt 0:00:08]} Nc6 {[%emt 0:00:19]} 8. Bxc6 {[%emt 0:00:07]} ({Don't play} 8. Nxc4 Qxd4 (8... Nxd4 9. Bf4 $11) 9. Qb3 Qc5 $17) 8... bxc6 {[%emt 0:00:03]} 9. Nxc6 {[%emt 0:00:06] A dynamic duo of knights.} Qe8 {[%emt 0:00:05]} 10. Nxe7+ {[%emt 0:00:06]} Qxe7 {[%emt 0:00:03]} 11. Qa4 {[%emt 0:00:06]} Nd5 {[%emt 0:02:10]} 12. Qxc4 {[%emt 0:03:25]} a5 {[%emt 0:00:27]} 13. Qc5 {[%emt 0:07:04]} Qxc5 {[%emt 0:04:32]} 14. dxc5 {[%emt 0:00:02]} Nxc3 {[%emt 0:00:09]} 15. bxc3 {[%emt 0:00:04]} e5 {[%emt 0:00:55]} 1/2-1/2

[Event "13th Palmanova Festival A 2024"]
[Site "Palmanova"]
[Date "2024.12.29"]
[Round "4.4"]
[White "Dobrovoljc, Vid"]
[Black "Sepehrkhoui, Ardeshir"]
[Result "1-0"]
[ECO "E06"]
[WhiteElo "2365"]
[BlackElo "2266"]
[Annotator "TA"]
[PlyCount "55"]
[EventDate "2024.12.27"]
[EventCountry "ITA"]
[SourceTitle "playchess.com"]
[Source "ChessBase"]
[SourceQuality "1"]
[TimeControl "6000+30"]

{[%evp 14,55,22,5,3,6,31,21,34,24,25,26,27,31,18,21,23,27,44,42,66,56,83,89,105,96,109,108,133,105,100,108,132,116,166,132,600,158,914,921,1318,1316,1292,1282]} 1. c4 {[%emt 0:10:13]} e6 {[%emt 0:00:38]} 2. Nf3 {[%emt 0:02:01]} Nf6 {[%emt 0:00:27]} 3. g3 {[%emt 0:00:46]} d5 {[%emt 0:00:29]} 4. Bg2 {[%emt 0:01:29]} Be7 {[%emt 0:00:03]} 5. O-O {[%emt 0:03:10]} O-O {[%emt 0:01:41]} 6. d4 {[%emt 0:00:17]} a5 {[%emt 0:00:28]} 7. Qc2 {[%emt 0:07:38]} c6 {[%emt 0:15:39]} 8. Nbd2 {[%emt 0:04:05]} b6 {[%emt 0:04:20]} 9. e4 {[%emt 0:01:32]} Ba6 {[%emt 0:02:48]} 10. Re1 {[%emt 0:14:18]} Nbd7 {[%emt 0:01:12]} 11. e5 {[%emt 0:08:24]} Ne8 {[%emt 0:02:06]} 12. cxd5 {[%emt 0:00:04]} cxd5 {[%emt 0:00:15]} 13. Nf1 {[%emt 0:00:05]} Rc8 {[%emt 0:03:23]} 14. Qd1 {[%emt 0:00:13]} b5 {[%emt 0:11:36][%cal Bb6b5,Bb5b4][%mdl 32]} 15. h4 {[%emt 0:01:23][%cal Bh2h4,Bh4h5,Bh5h6][%mdl 32]} Qb6 {[%emt 0:10:58]} 16. h5 $36 {[%emt 0:12:33][%mdl 2048] White has the initiative.} b4 {[%emt 0:03:37]} 17. h6 {[%emt 0:00:21]} g6 {[%emt 0:00:16]} 18. Bg5 {[%emt 0:03:42]} Bxg5 {[%emt 0:05:56]} 19. Nxg5 {[%emt 0:00:07]} Rc4 {[%emt 0:07:32] [#]} 20. Nf3 $1 {[%emt 0:01:42] White is more active.} f5 {[%emt 0:11:07]} 21. exf6 {[%emt 0:10:09]} Nexf6 {[%emt 0:00:50]} 22. Ne3 {[%emt 0:00:07]} Rcc8 {[%emt 0:09:07]} 23. Ng5 {[%emt 0:00:40] Inhibits Ne4.} Rc6 {[%emt 0:00:52]} (23... Rce8 $16 {keeps fighting.} 24. Rc1 Bb5) 24. Qd2 {[%emt 0:05:51]} Re8 $2 {[%emt 0:04:26][%mdl 8192]} (24... Rd6 $16 25. Rad1 Re8) 25. Rad1 $2 {[%emt 0:01:18]} (25. Nxd5 $18 Nxd5 26. Bxd5) 25... Qc7 $2 {[%emt 0:01:24] [#]} (25... Rd6 $16 26. a3 Rf8 27. axb4 axb4) 26. Nxd5 $1 $18 {[%emt 0:03:55][%mdl 512]} exd5 {[%emt 0:04:09]} (26... Nxd5 27. Bxd5) 27. Rxe8+ {[%emt 0:00:11]} Nxe8 {[%emt 0:00:01]} 28. Bxd5+ {[%emt 0:00:06]} 1-0

[Event "13th Palmanova Festival A 2024"]
[Site "Palmanova"]
[Date "2024.12.29"]
[Round "4.5"]
[White "Knudsen, Simon"]
[Black "Bettalli, Francesco"]
[Result "0-1"]
[ECO "B57"]
[WhiteElo "2303"]
[BlackElo "2359"]
[Annotator "TA"]
[PlyCount "100"]
[EventDate "2024.12.27"]
[EventCountry "ITA"]
[SourceTitle "playchess.com"]
[Source "ChessBase"]
[SourceQuality "1"]
[TimeControl "6000+30"]

{[%evp 12,100,31,25,33,23,20,14,20,11,16,-102,-94,-91,-101,-208,-203,-204,-203,-210,-207,-215,-27,-29,-35,-29,-33,-31,-35,-35,-26,-24,-30,-30,-31,-35,-36,-37,-17,-31,-14,-42,-30,-27,-25,-42,-42,-42,-41,-42,-42,-51,-51,-51,-51,-51,-51,-51,-51,-51,-39,-39,-31,-38,-38,-122,-122,-1000,-1015,-965,-950,-886,-863,-706,-740,-657,-633,-512,-487,-29972,-29973,-29973,-29974,-29980,-29978,-29981,-29982,-29983,-29984,-29984,-29985]} 1. e4 {[%emt 0:00:01]} c5 {[%emt 0:16:08]} 2. Nf3 {[%emt 0:00:08]} Nc6 {[%emt 0:00:06]} 3. Nc3 {[%emt 0:00:07]} d6 {[%emt 0:00:33]} 4. d4 {[%emt 0:01:28]} cxd4 {[%emt 0:00:05]} 5. Nxd4 {[%emt 0:00:06]} Nf6 {[%emt 0:00:07]} 6. Bc4 {[%emt 0:00:28]} Bd7 {[%emt 0:06:41]} 7. O-O {[%emt 0:03:33]} a6 {[%emt 0:00:59]} 8. a3 {[%emt 0:03:43]} g6 {[%emt 0:03:19]} 9. Nxc6 {[%emt 0:00:32]} Bxc6 {[%emt 0:00:44] The position is equal.} 10. Re1 {[%emt 0:03:45]} Bg7 {[%emt 0:00:45]} 11. e5 {[%emt 0:04:37]} (11. Bg5 $11) 11... dxe5 $17 {[%emt 0:00:56]} 12. Qxd8+ {[%emt 0:00:08]} Rxd8 {[%emt 0:00:11]} 13. Rxe5 {[%emt 0:00:31] [#]} (13. f3 $17) 13... Ne4 $1 $19 {[%emt 0:04:16][%mdl 512]} 14. Rxe4 {[%emt 0:10:06]} Bxc3 {[%emt 0:00:38]} 15. Re3 {[%emt 0:00:19]} Rd1+ {[%emt 0:00:40]} 16. Bf1 {[%emt 0:00:06]} Bb5 $2 {[%emt 0:00:11] White is weak on the light squares} (16... Bd2 $1 $19 {[%cal Rd2e3]} 17. Bxd2 Rxa1) 17. Rxe7+ $11 {[%emt 0:00:07]} Kd8 {[%emt 0:06:10][%csl Gb5][%cal Rd1f1]} (17... Kxe7 18. Bg5+ f6 19. Rxd1 $15) 18. Bg5 $1 {[%emt 0:00:18]} Rxa1 {[%emt 0:01:42][%csl Gb5][%cal Ra1f1]} 19. Re1+ {[%emt 0:00:11]} Kc8 {[%emt 0:01:33]} 20. Rxa1 {[%emt 0:00:40]} Bxb2 {[%emt 0:00:04]} 21. Rb1 {[%emt 0:01:46]} Bxf1 {[%emt 0:00:25]} 22. Rxb2 {[%emt 0:00:23][%mdl 4096] Endgame. KRB-KRB} Bc4 {[%emt 0:00:10]} 23. c3 {[%emt 0:03:25]} Re8 {[%emt 0:03:53]} 24. Be3 {[%emt 0:00:08]} Kc7 {[%emt 0:01:18]} 25. h3 {[%emt 0:00:52]} Re7 {[%emt 0:01:13]} 26. Rd2 {[%emt 0:01:41]} Bb5 {[%emt 0:03:18]} 27. Rd4 {[%emt 0:00:31]} Rd7 {[%emt 0:00:34]} 28. g4 {[%emt 0:08:44]} Rxd4 {[%emt 0:05:49]} 29. Bxd4 $15 {[%emt 0:02:28] KB-KB} Kd6 {[%emt 0:03:25]} 30. Kg2 {[%emt 0:00:07]} Kd5 {[%emt 0:01:59]} 31. Kf3 {[%emt 0:00:09]} Kc4 {[%emt 0:01:14]} 32. Kf4 {[%emt 0:01:56]} Kb3 {[%emt 0:00:36]} 33. Bc5 {[%emt 0:00:07]} Kxc3 {[%emt 0:00:32]} 34. Ke5 {[%emt 0:00:30]} Bf1 {[%emt 0:03:03]} 35. h4 {[%emt 0:00:21]} Be2 {[%emt 0:01:01]} 36. g5 {[%emt 0:00:23]} b5 {[%emt 0:03:20]} 37. Kf6 {[%emt 0:32:24]} Bc4 {[%emt 0:01:10] ...a5 is the strong threat.} 38. Kg7 {[%emt 0:02:01]} ({White should try} 38. Bb4+ $15 Kd3 39. Kg7) 38... a5 $17 {[%emt 0:01:30] Hoping for ...b4.} 39. Kxh7 $2 {[%emt 0:00:07][%mdl 8192] This move loses the game for White.} (39. Bb6 $17) 39... b4 $1 $19 {[%emt 0:00:25]} 40. axb4 {[%emt 0:00:07]} axb4 {[%emt 0:00:04]} 41. Kg7 {[%emt 0:00:08]} b3 {[%emt 0:01:03] And now ...b2 would win.} 42. Ba3 {[%emt 0:00:06]} b2 $1 {[%emt 0:00:19]} 43. Bxb2+ {[%emt 0:00:07]} Kxb2 {[%emt 0:00:03] KB-K3P} 44. f4 {[%emt 0:00:09]} Kc2 {[%emt 0:06:59]} 45. Kf6 {[%emt 0:00:11]} (45. f5 $19 gxf5 46. h5) 45... Kd2 $1 {[%emt 0:01:23] Black mates.} ({Weaker is} 45... Be6 46. f5 Bxf5 47. h5 gxh5 48. Kxf5 $11) 46. f5 {[%emt 0:01:41] [#]} Bd3 $1 {[%emt 0:00:15]} 47. fxg6 {[%emt 0:01:02]} Bxg6 {[%emt 0:00:23]} 48. Kg7 {[%emt 0:00:08]} Ke3 {[%emt 0:00:16]} 49. Kh6 {[%emt 0:00:05]} Kf4 {[%emt 0:00:05]} 50. h5 {[%emt 0:00:07] [#]} Kf5 $1 {[%emt 0:00:08] Weighted Error Value: White=0.45/Black=0.07 (flawless) .  Loses game:     	White=1     	---        Missed win:     	---       	Black=1      Mistake:       	White=3     	---        Inaccurate:     	White=1     	---        OK:         	White=15    	Black=16     Best:        	White=3     	Black=3      Strong:       	White=1     	Black=2      Brilliant:      	---       	Black=1} 0-1

[Event "13th Palmanova Festival A 2024"]
[Site "Palmanova"]
[Date "2024.12.29"]
[Round "4.6"]
[White "Pegno, Mattia"]
[Black "Marn, Jan"]
[Result "1-0"]
[ECO "D87"]
[WhiteElo "2243"]
[BlackElo "2400"]
[Annotator "TA"]
[PlyCount "125"]
[EventDate "2024.12.27"]
[EventCountry "ITA"]
[SourceTitle "playchess.com"]
[Source "ChessBase"]
[SourceQuality "1"]
[TimeControl "6000+30"]

{[%evp 25,125,-26,-30,-14,-16,-23,0,0,0,-27,-10,-18,36,0,20,-37,0,18,14,13,22,8,18,12,28,16,27,28,25,17,24,25,22,0,26,0,70,67,97,76,107,14,0,0,0,0,0,0,24,0,0,0,0,0,0,0,0,0,29,12,16,8,8,8,12,14,11,0,0,0,9,0,0,0,0,0,383,360,602,389,392,382,382,382,781,781,772,622,523,392,2551,2204,5089,3995,5591,5584,5128,5110,4133,1372,1282,1212]} 1. d4 {[%emt 0:05:57]} Nf6 {[%emt 0:03:10]} 2. c4 {[%emt 0:00:14]} g6 {[%emt 0:00:08]} 3. Nc3 {[%emt 0:00:13]} d5 {[%emt 0:00:09]} 4. cxd5 {[%emt 0:00:28]} Nxd5 {[%emt 0:00:07]} 5. e4 {[%emt 0:00:20]} Nxc3 {[%emt 0:00:07]} 6. bxc3 {[%emt 0:00:06]} Bg7 {[%emt 0:00:03]} 7. Bc4 {[%emt 0:00:18]} c5 {[%emt 0:00:15]} 8. Ne2 {[%emt 0:00:20]} Nc6 {[%emt 0:00:08]} 9. Be3 {[%emt 0:00:22]} O-O {[%emt 0:00:11]} 10. O-O {[%emt 0:00:33]} Bg4 {[%emt 0:00:14]} 11. f3 {[%emt 0:01:52]} Bd7 {[%emt 0:00:14]} 12. Qd2 {[%emt 0:05:57]} Qa5 {[%emt 0:00:34]} 13. d5 {[%emt 0:20:20]} Ne5 {[%emt 0:00:28]} 14. Bb3 {[%emt 0:00:23]} Bb5 {[%emt 0:14:39]} 15. Rfc1 {[%emt 0:14:15]} Nc4 {[%emt 0:01:46]} 16. Bxc4 {[%emt 0:00:30]} Bxc4 {[%emt 0:00:07]} 17. Nf4 {[%emt 0:14:10]} Rad8 {[%emt 0:12:21]} 18. Nd3 {[%emt 0:04:34]} b6 {[%emt 0:03:58]} (18... Bxd3 $11 19. Qxd3 e6) 19. Nb2 {[%emt 0:01:33]} Ba6 {[%emt 0:00:26]} 20. Qc2 {[%emt 0:08:26]} (20. Bh6 $11) 20... e6 {[%emt 0:05:28]} (20... Rfe8 $15) 21. dxe6 $1 $11 {[%emt 0:07:27]} fxe6 {[%emt 0:00:03]} 22. Qb3 $1 {[%emt 0:00:38]} Rfe8 {[%emt 0:09:44]} 23. a4 {[%emt 0:00:55]} Bd3 {[%emt 0:00:16]} 24. Ra2 {[%emt 0:13:39]} h6 {[%emt 0:15:58]} 25. Kf2 {[%emt 0:03:16]} Kh7 {[%emt 0:02:06]} 26. Nxd3 {[%emt 0:02:20]} (26. c4 Qb4 27. Qxb4 cxb4 28. Nxd3 Rxd3 $17) 26... Rxd3 {[%emt 0:00:03]} 27. Qb5 {[%emt 0:00:12]} Qxb5 {[%emt 0:02:03]} 28. axb5 {[%emt 0:00:05]} Re7 {[%emt 0:00:07]} 29. c4 {[%emt 0:01:11]} Red7 {[%emt 0:01:16]} 30. Ke2 {[%emt 0:00:32]} Bc3 {[%emt 0:02:30]} (30... g5 $11) 31. Rcc2 $14 {[%emt 0:01:47]} (31. Rxa7 $2 Rxe3+ 32. Kxe3 Bd4+ (32... Rxa7 $2 33. Rxc3 Ra2 34. Rd3 $18) 33. Kf4 Rxa7 $19) 31... Bb4 {[%emt 0:08:37]} 32. Bd2 {[%emt 0:00:34]} (32. Ra4 {with more complications.} g5 33. Rca2 Ba5 34. Bxc5 Rb3 35. Bf2) 32... Rb3 {[%emt 0:24:30]} 33. Bxb4 {[%emt 0:00:32]} ({Better is} 33. Rcb2 $16 Rxb2 34. Rxb2) 33... Rxb4 $11 {[%emt 0:00:37]} 34. Rd2 {[%emt 0:00:37]} Rc7 {[%emt 0:02:13]} 35. Kd3 {[%emt 0:00:10]} Kg7 {[%emt 0:00:04]} 36. Kc3 {[%emt 0:00:12]} Kf6 {[%emt 0:00:06]} 37. Rd1 {[%emt 0:02:47]} g5 {[%emt 0:02:27]} 38. Raa1 {[%emt 0:00:39]} Ke5 {[%emt 0:00:58]} 39. Rd8 {[%emt 0:00:17]} g4 {[%emt 0:00:25]} 40. Rf8 {[%emt 0:00:52]} gxf3 $1 {[%emt 0:00:17]} 41. gxf3 {[%emt 0:00:07]} Rd7 {[%emt 0:00:00]} 42. Re1 $1 {[%emt 0:00:00]} Ra4 $1 {[%emt 0:00:00]} 43. f4+ {[%emt 0:00:00]} Kd6 {[%emt 0:00:00]} 44. Rd1+ {[%emt 0:00:00]} Ke7 {[%emt 0:00:00]} 45. Rxd7+ {[%emt 0:00:00]} Kxf8 {[%emt 0:00:00]} 46. Kb3 {[%emt 0:00:00]} Rb4+ {[%emt 0:00:00]} 47. Kc3 {[%emt 0:00:00]} Ra4 {[%emt 0:00:00]} 48. f5 {[%emt 0:00:00]} exf5 {[%emt 0:00:00]} 49. exf5 {[%emt 0:00:00]} Ra3+ {[%emt 0:00:00]} 50. Kd2 {[%emt 0:00:00]} Rh3 $2 {[%emt 0:00:00][%mdl 8192]} (50... h5 $11 {and Black has nothing to worry.}) 51. Rxa7 $18 {[%emt 0:00:00]} Rxh2+ $2 {[%emt 0:00:00]} (51... h5 52. Rb7 Rxh2+ 53. Kd3 h4) 52. Kd3 $18 {[%emt 0:00:00]} Rh4 {[%emt 0:00:00]} 53. Rd7 {[%emt 0:00:50]} h5 {[%emt 0:00:00]} 54. Rd6 {[%emt 0:02:12]} Ke7 $2 {[%emt 0:00:00]} (54... Rh1 55. Rxb6 h4) 55. Rxb6 $18 {[%emt 0:00:51]} Rd4+ {[%emt 0:00:00]} 56. Kc3 {[%emt 0:00:11]} Rf4 {[%emt 0:00:00]} 57. f6+ {[%emt 0:02:14]} Kd7 $2 {[%emt 0:00:00]} (57... Kf7 58. Rc6 Rf3+ 59. Kb2 h4) 58. Rb7+ $18 {[%emt 0:02:07]} Kd6 {[%emt 0:00:00]} 59. Rh7 {[%emt 0:00:40]} Rxf6 {[%emt 0:00:00]} 60. Rxh5 {[%emt 0:00:07]} Rf3+ {[%emt 0:00:00]} 61. Kc2 {[%emt 0:00:51]} Rf2+ {[%emt 0:00:04]} 62. Kd3 {[%emt 0:00:16]} (62. Kb3 $142 Rf1 63. Rd5+ Kc7 64. Rxc5+ Kb7 65. Rc6) 62... Rf3+ $18 {[%emt 0:00:16]} 63. Ke4 {[%emt 0:02:01]} 1-0

[Event "13th Palmanova Festival A 2024"]
[Site "Palmanova"]
[Date "2024.12.29"]
[Round "4.7"]
[White "Gkoumas, Georgios"]
[Black "Skrbec, Leon"]
[Result "1/2-1/2"]
[ECO "B11"]
[WhiteElo "2449"]
[BlackElo "2265"]
[Annotator "TA"]
[PlyCount "59"]
[EventDate "2024.12.27"]
[EventCountry "ITA"]
[SourceTitle "playchess.com"]
[Source "ChessBase"]
[SourceQuality "1"]
[TimeControl "6000+30"]

{[%evp 9,59,0,12,12,27,22,20,16,23,26,23,22,25,25,31,27,30,25,27,20,27,27,24,18,20,20,28,15,26,18,11,3,8,10,14,8,16,0,13,1,9,0,0,0,10,8,12,0,0,0,12,0]} 1. e4 {[%emt 0:06:04]} c6 {[%emt 0:02:02]} 2. Nf3 {[%emt 0:01:11]} d5 {[%emt 0:00:09]} 3. Nc3 {[%emt 0:00:03]} Bg4 {[%emt 0:00:29]} 4. d4 {[%emt 0:00:31]} e6 {[%emt 0:05:14]} 5. Be2 {[%emt 0:00:12]} Nd7 {[%emt 0:00:29]} 6. O-O {[%emt 0:16:19]} dxe4 {[%emt 0:01:22]} 7. Nxe4 {[%emt 0:02:08]} Ngf6 {[%emt 0:00:10]} 8. Nxf6+ {[%emt 0:13:04]} Nxf6 {[%emt 0:00:09]} 9. Re1 {[%emt 0:00:18]} Be7 {[%emt 0:00:59]} 10. c3 {[%emt 0:01:20]} O-O {[%emt 0:03:24]} 11. h3 {[%emt 0:00:45]} Bxf3 {[%emt 0:01:21]} 12. Bxf3 {[%emt 0:00:07]} Qc7 {[%emt 0:00:11]} 13. g3 {[%emt 0:00:48]} Rfd8 {[%emt 0:01:11]} 14. Qe2 {[%emt 0:01:11]} h6 {[%emt 0:01:10]} 15. Kg2 {[%emt 0:00:17]} Rd7 {[%emt 0:04:49]} 16. Bd2 {[%emt 0:07:39]} Rad8 {[%emt 0:00:30]} 17. Rad1 {[%emt 0:00:34]} a6 {[%emt 0:06:47]} 18. Bc1 {[%emt 0:06:39]} Nd5 {[%emt 0:04:53]} 19. h4 {[%emt 0:04:47]} b5 {[%emt 0:06:30]} 20. Qc2 {[%emt 0:06:02]} c5 {[%emt 0:02:53]} 21. dxc5 {[%emt 0:01:08]} Qxc5 {[%emt 0:00:19]} 22. Re4 {[%emt 0:04:33] Prevents Nb4} Bf6 {[%emt 0:07:08]} 23. a4 {[%emt 0:06:22]} Qb6 {[%emt 0:07:01]} 24. axb5 {[%emt 0:00:37]} axb5 {[%emt 0:00:06]} 25. Rg4 {[%emt 0:09:43]} Kh8 {[%emt 0:01:28]} 26. Qb3 {[%emt 0:07:28]} Qc5 {[%emt 0:06:19]} 27. Re4 {[%emt 0:06:32]} Kg8 {[%emt 0:05:10]} 28. Rg4 {[%emt 0:00:06]} Kh8 {[%emt 0:00:05]} 29. Re4 {[%emt 0:00:04]} Kg8 {[%emt 0:00:06]} 30. Rg4 {[%emt 0:00:06]} 1/2-1/2